Cogmind - Beta 13 @@@ ROGUE MODE // 2024.07.18 @ 19:10:12 Player: kaj Result: Destroyed by D-53 Grenadier with Mini Grenade Launcher Performance ------------- Evolutions (0) 0 Regions Visited (2) 400 Robots Destroyed (7) 35 Value Destroyed (153) 153 Prototype IDs (0) 0 Alien Tech Used (0) 0 Bonus (0) 0 TOTAL SCORE: 588 Bonus ------- None Cogmind --------- Core Integrity 0/250 Matter 300/300 Energy 59/100 System Corruption 13% Temperature Cool (0) Movement Core (50) Location -10/Mines Parts ------- > --- POWER (1) -------- (None) > --- PROPULSION (2) --- (None) > --- UTILITY (2) ------ Signal Interpreter > --- WEAPON (2) ------- (None) > --- INVENTORY (5) ---- High-capacity Matter Pod (130) Faulty Experimental Sensor Array Beam Cannon Bore Cannon Mining Laser Peak State ------------ > --- POWER ------------ Ion Engine > --- PROPULSION ------- Light Treads Wheel > --- UTILITY ---------- Small Storage Unit Targeting Computer > --- WEAPON ----------- Light Assault Rifle Light Assault Rifle > --- INVENTORY -------- Light Ion Engine Light Treads Light Treads Light Treads Large Matter Pod Experimental Sensor Array Beam Cannon Mining Laser [Rating: 8] Favorites ----------- Power Ion Engine Engine Ion Engine Propulsion Light Treads Treads Light Treads Leg Aluminum Leg Wheel Wheel Utility Small Storage Unit Storage Small Storage Unit Processor Targeting Computer Weapon Light Assault Rifle Energy Cannon Beam Cannon Ballistic Gun Light Assault Rifle Build | -11 -10 -10 ------- Run | Yrd Mat Min Slots Evolved . | . . . Power . | . . . Propulsion . | . . . Utility . | . . . Weapon . | . . . Parts Attached 15 | . 7 8 Power 2 | . 1 1 Engine 2 | . 1 1 Core . | . . . Reactor . | . . . Propulsion 7 | . 3 4 Treads 4 | . 2 2 Leg . | . . . Wheel 3 | . 1 2 Hover . | . . . Flight . | . . . Utility 3 | . 1 2 Device . | . . . Storage 1 | . . 1 Processor 2 | . 1 1 Hackware . | . . . Protection . | . . . Artifact . | . . . Weapon 3 | . 2 1 Energy Gun . | . . . Energy Cannon 1 | . . 1 Ballistic Gun 2 | . 2 . Ballistic Cannon . | . . . Launcher . | . . . Special Weapon . | . . . Impact Weapon . | . . . Slashing Weapon . | . . . Piercing Weapon . | . . . Special Melee Weapon . | . . . Unidentified Prototypes . | . . . Parts Lost 11 | . 2 9 Power 3 | . 1 2 Propulsion 4 | . . 4 Utility 1 | . . 1 Weapon 3 | . 1 2 Highest Loss Streak 5 | . 1 5 To Critical Strikes . | . . . Average Slot Usage (%) 91 | . 87 94 Engine 10 | . 8 12 Treads 18 | . 15 20 Wheel 8 | . 11 6 Storage 13 | . 14 13 Processor 10 | . 7 13 Ballistic Gun 27 | . 28 26 Naked Turns . | . . . Heaviest Build 12 | 10 12 12 Greatest Support 40 | 20 40 40 Greatest Overweight (x) 2 | . . 2 Average Overweight (x) . | . . . Largest Inventory Capacity 8 | . 8 8 Average Capacity 7 | . 8 7 Most Carried 8 | . 8 8 Average Carried 7 | . 6 7 Final Capacity 8 | 8 8 5 Final Carried 8 | 6 8 5 Class Distribution -------------------- 100% | Mutant Dominant Class ---------------- Mutant | -10/Materials Mutant | -10/Mines Resources | -11 -10 -10 ----------- Run | Yrd Mat Min Matter Collected 717 | 200 179 338 Remotely . | . . . Salvage Created 341 | . 283 58 Parts 12 | . 11 1 Haulers Intercepted . | . . . Recyclers Shooed 1 | . 1 . Parts Field Recycled . | . . . Retrieved Matter . | . . . Parts Self-Destructed . | . . . Prevented . | . . . Kills | -11 -10 -10 ------- Run | Yrd Mat Min Combat Hostiles Destroyed 8 | . 4 4 Guns 8 | . 4 4 Classes Destroyed 5 | . 3 2 Worker 1 | . 1 . Recycler 1 | . 1 . Swarmer 1 | . . 1 Grunt 4 | . 4 . Assembled 3 | . . 3 Best Kill Streak 3 | . 3 1 Combat Bots Only 2 | . 2 1 Max Kills in Single Turn 1 | . 1 1 Gunslinging . | . . . Exploded . | . . . Melee . | . . . Uniques/NPCs Destroyed . | . . . Combat | -11 -10 -10 -------- Run | Yrd Mat Min Hostile Shots Fired 66 | . 33 33 Missed 16 | . 10 6 Damage Taken 1325 | . 298 1027 Core 276 | . 66 210 Absorbed by Shields . | . . . Core Remaining (%) 100 | 100 . . Volleys Fired 57 | . 33 24 Largest 2 | . 2 2 Hottest 40 | . 40 40 Shots Fired 113 | . 65 48 Gun 113 | . 65 48 Cannon . | . . . Launcher . | . . . Special . | . . . Kinetic 113 | . 65 48 Thermal . | . . . Explosive . | . . . Electromagnetic . | . . . Robot Hit Streak 15 | . 15 10 Robot Miss Streak 5 | . 5 2 Penetration Max . | . . . Secondary Targets . | . . . Shots Hit Robots 70 | . 41 29 Core Hits 28 | . 16 12 Critical Kills . | . . . Critical Parts Destroyed . | . . . Critical Strikes . | . . . Melee Attacks . | . . . Impact . | . . . Slashing . | . . . Piercing . | . . . Sneak Attacks . | . . . Combat Hostiles . | . . . Follow-up Attacks . | . . . Damage Inflicted 595 | . 358 237 Guns 595 | . 358 237 Cannons . | . . . Explosions . | . . . Melee . | . . . Ramming . | . . . Kinetic 595 | . 358 237 Thermal . | . . . Explosive . | . . . Electromagnetic . | . . . Impact . | . . . Slashing . | . . . Piercing . | . . . Highest Corruption 13 | . . 13 Average Corruption 11 | . . 11 Corruption Purged . | . . . Corruption Blocked . | . . . Effects 2 | . . 2 Data Loss (minor) 1 | . . 1 Data Loss (major) 1 | . . 1 Overload Shots . | . . . Overflow Damage . | . . . Projectiles . | . . . Explosions . | . . . Melee . | . . . Knockbacks . | . . . Impact . | . . . Kinetic . | . . . Secondary . | . . . Self-Inflicted Damage . | . . . Shots . | . . . Rammed . | . . . Targets Rammed . | . . . Kicked . | . . . Crushed . | . . . Highest Temperature 12 | . 12 . Average Temperature 3 | . 3 . Received Heat Transfer 138 | . 138 . Siege Activations . | . . . Robots Corrupted . | . . . Combat Hostiles . | . . . Parts Fried . | . . . Impact Corruptions . | . . . Robots Melted . | . . . Combat Hostiles . | . . . Parts Melted . | . . . Heat Transferred . | . . . Parts Sabotaged . | . . . Parts Stolen . | . . . Parts Stripped . | . . . Power Chain Reactions . | . . . Alert | -11 -10 -10 ------- Run | Yrd Mat Min Peak Influence 126 | . 126 93 Initial 48 | . . 48 Average 65 | . 59 69 Maximum Alert Level . | . . . Low Security (%) 100 | . 100 100 Level 1 . | . . . Level 2 . | . . . Level 3 . | . . . Level 4 . | . . . Level 5 . | . . . High Security . | . . . Max Security . | . . . Squads Dispatched 1 | . 1 . Investigation . | . . . Extermination . | . . . Reinforcement 1 | . 1 . Assault . | . . . Garrison . | . . . Intercept . | . . . Searches Triggered . | . . . Construction Impeded . | . . . Haulers Reinforced . | . . . Active Scanning Responses . | . . . Cargo Convoy Interrupts . | . . . Stealth | -11 -10 -10 --------- Run | Yrd Mat Min Distress Signals 1 | . 1 . Communications Jammed . | . . . Distress Signals . | . . . Times Spotted 16 | . 10 6 Peak Tracking Total 4 | . 4 2 Tactical Retreats . | . . . Traps | -11 -10 -10 ------- Run | Yrd Mat Min Traps Triggered 1 | . 1 . Indirectly . | . . . Trap Hack Attempts . | . . . Triggered . | . . . Disarmed . | . . . Reprogrammed . | . . . Reused . | . . . Traps Extracted . | . . . Installed . | . . . Triggered . | . . . Machines | -11 -10 -10 ---------- Run | Yrd Mat Min Machines Disabled . | . . . Max in Single Turn . | . . . Machines Repaired . | . . . Machines Dismantled . | . . . Machines Sabotaged . | . . . Overloaded Fab Kills . | . . . Hacking | -11 -10 -10 --------- Run | Yrd Mat Min Machines Accessed 3 | . 3 . Terminals 3 | . 3 . Fabricators . | . . . Repair Stations . | . . . Recycling Units . | . . . Scanalyzers . | . . . Garrison Access . | . . . Total Hacks 10 | . 10 . Successful 3 | . 3 . Failed 7 | . 7 . Catastrophic 1 | . 1 . Database Lockouts . | . . . Manual 10 | . 10 . Terminals 10 | . 10 . Fabricators . | . . . Repair Stations . | . . . Recycling Units . | . . . Scanalyzers . | . . . Garrison Access . | . . . Terminal Hacks 2 | . 2 . Robot Analysis 2 | . 2 . Fabricator Hacks . | . . . Repair Station Hacks . | . . . Recycling Unit Hacks . | . . . Scanalyzer . | . . . Garrison Access Hacks . | . . . Unauthorized Hacks 1 | . 1 . Terminals 1 | . 1 . Botnet 1 | . 1 . Fabricators . | . . . Repair Stations . | . . . Recycling Units . | . . . Scanalyzers . | . . . Garrison Access . | . . . Data Cores Recovered . | . . . Used . | . . . Hacking Detections 2 | . 2 . Full Trace Events 2 | . 2 . Feedback Events . | . . . Feedback Blocked . | . . . Robot Schematics Acquired . | . . . Robots Built . | . . . Authchips . | . . . Time . | . . . Total Robot Build Rating . | . . . Part Schematics Acquired . | . . . Parts Built . | . . . Authchips . | . . . Time . | . . . Total Part Build Rating . | . . . Parts Repaired . | . . . Time . | . . . Parts Recycled . | . . . Recycled Matter . | . . . Retrieved Matter . | . . . Retrieved Components . | . . . Parts Scanalyzed . | . . . Part Schematics Acquired . | . . . Parts Damaged . | . . . Bothacking | -11 -10 -10 ------------ Run | Yrd Mat Min Used RIF Installer . | . . . Robots Hacked . | . . . Non-combat . | . . . Combat . | . . . Robot Hacks Applied . | . . . Relay Couplers Released . | . . . Fabnet Peak Effective % . | . . . Robots Rewired . | . . . Allies Hacked . | . . . Hacks Repelled . | . . . Allies | -11 -10 -10 -------- Run | Yrd Mat Min Total Allies . | . . . Largest Group . | . . . Highest-Rated Group . | . . . Highest-Rated Ally . | . . . Total Orders . | . . . Ally Attacks . | . . . Total Damage . | . . . Kills . | . . . Allies Corrupted . | . . . Allies Melted . | . . . Intel | -11 -10 -10 ------- Run | Yrd Mat Min Robot Analysis Total 2 | . 2 . Derelict Logs Recovered 2 | . . 2 Drone Launches . | . . . Drone Recoveries . | . . . Exploration | -11 -10 -10 ------------- Run | Yrd Mat Min Turns Passed 827 | . 373 454 Spaces Moved 484 | 1 158 325 Core 22 | . . 22 Treads 284 | . 151 133 Legs 8 | 1 7 . Wheels 170 | . . 170 Hover . | . . . Flight . | . . . Fastest Speed 50 | 120 120 50 Average Speed 129 | 120 158 115 Slowest Speed 160 | 120 160 160 Overloaded Moves . | . . . Propulsion Burnouts . | . . . Robots Hopped . | . . . Cave-ins Triggered 1 | . . 1 Exploration Rate (%) 36 | 1 36 71 Regions Visited 2 Branch Regions 1 Pre-discovered Areas . | . . . Known Exits Taken . | . . . Unknown Exits Taken 2 | 1 1 . Scrap Searched 2 | . . 2 Spaces Dug . | . . . Terrain Destroyed . | . . . Melee . | . . . Projectile . | . . . AOE . | . . . Terrain Rammed . | . . . Walls Destroyed . | . . . Machines Disabled . | . . . Actions | -11 -10 -10 --------- Run | Yrd Mat Min Total 599 | . 231 368 Wait 15 | . 15 . Move 482 | . 157 325 Hop . | . . . Pick Up 14 | . 11 3 Fast Attach 5 | . 2 3 Attach 8 | . 3 5 Detach 2 | . . 2 Swap 2 | . 2 . Drop 14 | . 8 6 Fire 57 | . 33 24 Melee . | . . . Ram . | . . . Kick . | . . . Crush . | . . . Escape Stasis . | . . . Rewire . | . . . Trap . | . . . Miscellaneous . | . . . Route ------- -11/Scrapyard -10/Materials -10/Mines History --------- Turn | Location | Event 1 | -11/Scrapyard | Discovered new exit (range 0) 1 | -11/Scrapyard | Entered Materials 100 | -10/Materials | Discovered new exit (range 12) 304 | -10/Materials | Build established: Mutant 374 | -10/Materials | Entered Mines 375 | -10/Mines | Assembled infested the area 397 | -10/Mines | Learned 2 Materials zone layouts 466 | -10/Mines | Learned Materials emergency access door positions 617 | -10/Mines | Found a damaged Exp. Sensor Array with a note attached 619 | -10/Mines | Found Prototype Device 729 | -10/Mines | Crushed by falling debris 729 | -10/Mines | Core integrity fell below 50% 729 | -10/Mines | System corruption reached 10% 760 | -10/Mines | Lost 4 parts (1p2n1u) 787 | -10/Mines | A weapon hastily lodged in a ceiling crevice suddenly fell to the ground 796 | -10/Mines | Core integrity fell below 20% 828 | -10/Mines | Destroyed by D-53 Grenadier with Mini Grenade Launcher Last Messages --------------- 00795_ Lgt. Assault Rifle destroyed. 00796_ The unstable cave ceiling collapses. 00800_ Wheel destroyed. 00803_ The unstable cave ceiling collapses. 00804_ Lgt. Assault Rifle destroyed. 00804_ Lgt. Ion Engine destroyed. 00808_ The unstable cave ceiling collapses. 00811_ Lgt. Treads destroyed. 00813_ Dropped Sml. Storage Unit. 00813_ Dropped Lgt. Treads. 00817_ The unstable cave ceiling collapses. 00823_ Searching scrap... 00823_ Found Heat Sink. 00823_ Found Core Shielding. 00823_ Found Hcp. Matter Pod. 00823_ Found Med. Matter Pod. 00823_ Found 30 Matter. 00824_ Acquired Hcp. Matter Pod. 00826_ Dropped Lrg. Matter Pod. 00827_ Extracted 150 matter. Map ----- +----------------------------------------------------+ | | | | | | | | | | | | | | | | | | | | | | | | | | | | | | | ???????????????????????????????????????????? | | ???????????????????????????????????????????? | | ???????????????????????????????????????????? | | ???????????????????????????????????????????? | | ???????????#####???????????????????????????? | | ??????????## ##??????????????????????????? | | ??????????# ##?????????????????????????? | | ?????????## #?????????????????????????? | | ??????#### ####??????????????????????? | | ?????## ! #??????????????????????? | | ?????# ###@#??????????????????????? | | ?????# """ #?#!#??????????????????????? | | ?????## """ ##?#%#??????????????????????? | | ??????## """ ##?#!#??????????????????????? | | ???????## ###d#??????????????????????? | | ???????## #??????????????????????? | | ????#### ## #??????????????????????? | | ??### ## #??????????????????????? | | ??# =! ### ??????????????????????? | | ?## ##?# %??????????????????????? | | ## ##??# ??????????????????????? | | # ##???? ??????????????????????? | | # # #????? r??????????????????????? | | # # #????? ??????????????????????? | | ## #????? ??????????????????????? | | # # $ #????? ??????????????????????? | | ## # ## ##????? ??????????????????????? | | # # # #?????? ?????????????????#####? | | ## # #??#?????????????????????## ## | | # ## #????????????????????## # | | # #?????????????????#### # | | ## ####????????????????## ## | | ? ##??????????????????# ##? | | ## #??????*???????????# ## #?# | | ?# #????=%????????????## ### ### | +----------------------------------------------------+ Best States ------------- Heat Dissipation 25 Energy Generation 10 Energy Capacity 250 Matter Stores 300 Matter Capacity 300 Sight Range 16 Terrain Scan Density 10 Evasion (%) 50 Targeting Accuracy 5 Recoil Reduction 2 Item Schematics ----------------- None Robot Schematics ------------------ None Fabricated ------------ Nothing Alien Tech Used ----------------- None Achievements -------------- None Challenges ------------ None Game ------ Seed FusionWardroneWand Manual? 0 Play Time 00:08:33 Cumulative 169.7 hours Start 2024.07.18 @ 19:01:34 End 2024.07.18 @ 19:10:12 Sessions 1 Manual Loads 0 Difficulty Rogue Special Mode None Game No. 261 Rogue 261 Adventurer 0 Explorer 0 Win Type - Total 0 Types 0/0/0/0/0/0/0/0/0 Lore% 47 Gallery% 60 Achievement% 44 Wizard Run 0 Options --------- Layout 0 ASCII 0 Keyboard 0 Movement Mouse Keybinds 1 Fullscreen 2 Font 18/SmallcapsGlow Map View 76x50 Zoom Use 0% Tactical HUD 1 Map Filters SATURATION(75) Filters LOW_CONTRAST(23,23,23) Steam 1 RUN: 1e5e7290-122b-484f-a44a-137a4bcbbc4d